[Event "*** Titled Tuesday 3|2 Blitz"]
[Site "Chess.com"]
[Date "2016.10.04"]
[Round "2"]
[White "OparinGrigoriy"]
[Black "keisyzrk"]
[Result "1-0"]
[WhiteElo "2585"]
[BlackElo "2268"]
[TimeControl "180+2"]
[EndTime "11:18:27 PDT"]
[Termination "OparinGrigoriy won by resignation"]

1. Nf3 {[%clk 0:03:02]} 1... Nf6 {[%clk 0:03:00.4]} 2. g3 {[%clk 0:03:03.9]}
2... d5 {[%clk 0:03:00.2]} 3. Bg2 {[%clk 0:03:04.9]} 3... c6 {[%clk 0:03:01.7]}
4. O-O {[%clk 0:03:06.3]} 4... Bg4 {[%clk 0:03:02.5]} 5. c4 {[%clk 0:03:07.9]}
5... Nbd7 {[%clk 0:03:00.1]} 6. cxd5 {[%clk 0:03:09.2]} 6... cxd5 {[%clk
0:03:00.9]} 7. Qb3 {[%clk 0:03:07.2]} 7... Qb6 {[%clk 0:02:59.7]} 8. Qxb6 {[%clk
0:03:04]} 8... Nxb6 {[%clk 0:03:00.8]} 9. d3 {[%clk 0:03:05.5]} 9... g6 {[%clk
0:03:00]} 10. Nc3 {[%clk 0:03:05.7]} 10... Bg7 {[%clk 0:03:00.6]} 11. h3 {[%clk
0:03:07.4]} 11... Be6 {[%clk 0:02:52.3]} 12. Bf4 {[%clk 0:03:04.2]} 12... O-O
{[%clk 0:02:49]} 13. Rfc1 {[%clk 0:03:05.7]} 13... h6 {[%clk 0:02:45]} 14. Be5
{[%clk 0:03:05.5]} 14... Rfc8 {[%clk 0:02:36.9]} 15. Nd4 {[%clk 0:03:05.4]}
15... Nfd7 {[%clk 0:02:19.4]} 16. Bxg7 {[%clk 0:03:05.8]} 16... Kxg7 {[%clk
0:02:20.7]} 17. Nxe6+ {[%clk 0:03:02.8]} 17... fxe6 {[%clk 0:02:22.6]} 18. Kf1
{[%clk 0:03:03.7]} 18... Rc6 {[%clk 0:02:07]} 19. Nb5 {[%clk 0:03:04.5]} 19...
Kf7 {[%clk 0:01:59]} 20. Ke1 {[%clk 0:02:58.9]} 20... a6 {[%clk 0:01:55.3]} 21.
Nd4 {[%clk 0:02:59.8]} 21... Rxc1+ {[%clk 0:01:56.3]} 22. Rxc1 {[%clk
0:03:01.7]} 22... Rc8 {[%clk 0:01:57.9]} 23. Rxc8 {[%clk 0:03:02.7]} 23... Nxc8
{[%clk 0:01:59.8]} 24. h4 {[%clk 0:03:04.4]} 24... e5 {[%clk 0:01:54.7]} 25.
Bxd5+ {[%clk 0:03:04.6]} 25... Kf6 {[%clk 0:01:55.9]} 26. Nf3 {[%clk 0:02:58.3]}
26... b5 {[%clk 0:01:54.6]} 27. Nd2 {[%clk 0:02:58.4]} 27... Nd6 {[%clk
0:01:47.3]} 28. e3 {[%clk 0:02:59.4]} 28... e6 {[%clk 0:01:46.8]} 29. Bc6 {[%clk
0:02:57.1]} 29... Nc5 {[%clk 0:01:45.9]} 30. Ke2 {[%clk 0:02:58]} 30... Ke7
{[%clk 0:01:43.3]} 31. b3 {[%clk 0:02:57.6]} 31... Kd8 {[%clk 0:01:42.1]} 32.
Bg2 {[%clk 0:02:56.6]} 32... Kc7 {[%clk 0:01:41.7]} 33. d4 {[%clk 0:02:57.5]}
33... exd4 {[%clk 0:01:42.6]} 34. exd4 {[%clk 0:02:59.4]} 34... Nd7 {[%clk
0:01:43.5]} 35. Kd3 {[%clk 0:03:00.9]} 35... e5 {[%clk 0:01:40.8]} 36. Bh3
{[%clk 0:03:00.5]} 36... exd4 {[%clk 0:01:37.8]} 37. Kxd4 {[%clk 0:03:02.4]}
37... Nf6 {[%clk 0:01:36.4]} 38. Ke5 {[%clk 0:03:03.1]} 38... Nfe8 {[%clk
0:01:35.8]} 39. f4 {[%clk 0:03:01.2]} 39... Kc6 {[%clk 0:01:36.8]} 40. b4 {[%clk
0:02:57.9]} 40... Nc7 {[%clk 0:01:34.3]} 41. Bg2+ {[%clk 0:02:56.4]} 41... Kd7
{[%clk 0:01:33.4]} 42. Be4 {[%clk 0:02:55.7]} 42... Nxe4 {[%clk 0:01:15.6]} 43.
Nxe4 {[%clk 0:02:57.6]} 43... Ke7 {[%clk 0:01:17]} 44. Nc5 {[%clk 0:02:58.8]}
44... h5 {[%clk 0:01:13.3]} 45. a3 {[%clk 0:02:59.4]} 1-0

[Event "*** Titled Tuesday 3|2 Blitz"]
[Site "Chess.com"]
[Date "2016.10.04"]
[Round "2"]
[White "dretch"]
[Black "LornerAcosta"]
[Result "1-0"]
[WhiteElo "2637"]
[BlackElo "2349"]
[TimeControl "180+2"]
[EndTime "11:18:53 PDT"]
[Termination "dretch won by resignation"]

1. d4 {[%clk 0:03:01.7]} 1... d5 {[%clk 0:02:58.6]} 2. c4 {[%clk 0:03:02.9]}
2... e6 {[%clk 0:02:57.4]} 3. Nc3 {[%clk 0:03:04.1]} 3... Nf6 {[%clk 0:02:57.8]}
4. cxd5 {[%clk 0:03:05.3]} 4... exd5 {[%clk 0:02:58.6]} 5. Bg5 {[%clk
0:03:06.6]} 5... Be7 {[%clk 0:02:58.4]} 6. e3 {[%clk 0:03:07.9]} 6... c6 {[%clk
0:02:59.7]} 7. Bd3 {[%clk 0:03:08.7]} 7... Nbd7 {[%clk 0:03:01.1]} 8. Nge2
{[%clk 0:03:07.3]} 8... O-O {[%clk 0:03:02]} 9. Ng3 {[%clk 0:03:06.2]} 9... Re8
{[%clk 0:03:01.7]} 10. Nf5 {[%clk 0:03:06.9]} 10... Nf8 {[%clk 0:02:58.3]} 11.
Nxe7+ {[%clk 0:03:07.1]} 11... Qxe7 {[%clk 0:02:59.4]} 12. Qf3 {[%clk
0:03:08.1]} 12... N8d7 {[%clk 0:02:56.6]} 13. O-O {[%clk 0:03:07.9]} 13... h6
{[%clk 0:02:57.6]} 14. Bh4 {[%clk 0:03:08.2]} 14... Qd6 {[%clk 0:02:57.6]} 15.
h3 {[%clk 0:02:59.5]} 15... g5 {[%clk 0:02:41.3]} 16. Bg3 {[%clk 0:02:59.8]}
16... Qe7 {[%clk 0:02:42.4]} 17. Rfd1 {[%clk 0:02:56.6]} 17... Ne4 {[%clk
0:02:41.1]} 18. Bxe4 {[%clk 0:02:51.1]} 18... dxe4 {[%clk 0:02:41.7]} 19. Qh5
{[%clk 0:02:52.7]} 19... Kg7 {[%clk 0:02:36.1]} 20. d5 {[%clk 0:02:52.1]} 20...
Nf6 {[%clk 0:02:36.9]} 21. Qe2 {[%clk 0:02:53]} 21... cxd5 {[%clk 0:02:37.1]}
22. Nxd5 {[%clk 0:02:51.8]} 22... Nxd5 {[%clk 0:02:38.4]} 23. Rxd5 {[%clk
0:02:53.6]} 23... Be6 {[%clk 0:02:39]} 24. Rd4 {[%clk 0:02:51.4]} 24... f5
{[%clk 0:02:35.7]} 25. Be5+ {[%clk 0:02:50.8]} 25... Kh7 {[%clk 0:02:34.6]} 26.
Rad1 {[%clk 0:02:51.4]} 26... Red8 {[%clk 0:02:35.7]} 27. Qb5 {[%clk 0:02:36.6]}
27... a6 {[%clk 0:02:33.4]} 28. Qb6 {[%clk 0:02:36]} 28... Rxd4 {[%clk
0:02:32.7]} 29. Rxd4 {[%clk 0:02:35.7]} 29... Rc8 {[%clk 0:02:29.8]} 30. Rd6
{[%clk 0:02:27.6]} 30... Rc6 {[%clk 0:02:28.8]} 31. Rxc6 {[%clk 0:02:28.3]}
31... bxc6 {[%clk 0:02:28.5]} 32. Qxa6 {[%clk 0:02:20.7]} 32... Bxa2 {[%clk
0:02:21.3]} 33. Qxa2 {[%clk 0:02:21.2]} 33... Qxe5 {[%clk 0:02:22]} 34. Qf7+
{[%clk 0:02:22.2]} 34... Kh8 {[%clk 0:02:23.3]} 35. Qf8+ {[%clk 0:02:22]} 35...
Kh7 {[%clk 0:02:24.4]} 36. Qf7+ {[%clk 0:02:23.6]} 36... Kh8 {[%clk 0:02:25.5]}
37. Qg6 {[%clk 0:02:25.1]} 37... f4 {[%clk 0:02:08.6]} 38. Qxh6+ {[%clk
0:02:25.2]} 38... Kg8 {[%clk 0:02:10]} 39. Qxc6 {[%clk 0:02:23]} 39... fxe3
{[%clk 0:02:10.4]} 40. fxe3 {[%clk 0:02:23.9]} 40... Qxb2 {[%clk 0:02:08.7]} 41.
Qg6+ {[%clk 0:02:23.2]} 41... Qg7 {[%clk 0:02:09]} 42. Qxe4 {[%clk 0:02:22.1]}
42... Qf6 {[%clk 0:02:06.9]} 43. Qf3 {[%clk 0:02:20.3]} 43... Qe5 {[%clk
0:02:06.5]} 44. Qa8+ {[%clk 0:02:15]} 44... Kg7 {[%clk 0:02:06.3]} 45. Qb7+
{[%clk 0:02:15.9]} 45... Kg6 {[%clk 0:02:07.2]} 46. Qc6+ {[%clk 0:02:15]} 46...
Kg7 {[%clk 0:02:08]} 47. Qd7+ {[%clk 0:02:15.9]} 47... Kg6 {[%clk 0:02:09.2]}
48. Qd3+ {[%clk 0:02:16.8]} 48... Kf7 {[%clk 0:02:10]} 49. Qd4 {[%clk
0:02:17.1]} 49... Qb5 {[%clk 0:02:07.9]} 50. e4 {[%clk 0:02:15.7]} 50... Qb1+
{[%clk 0:02:08.2]} 51. Kh2 {[%clk 0:02:16.9]} 51... Qb8+ {[%clk 0:02:09.1]} 52.
e5 {[%clk 0:02:17.5]} 52... Ke6 {[%clk 0:01:53.2]} 53. Qg4+ {[%clk 0:02:18]}
53... Kd5 {[%clk 0:01:50.4]} 54. Qxg5 {[%clk 0:02:18]} 1-0

[Event "*** Titled Tuesday 3|2 Blitz"]
[Site "Chess.com"]
[Date "2016.10.04"]
[Round "2"]
[White "FearNoEvil12"]
[Black "josiwales"]
[Result "0-1"]
[WhiteElo "2042"]
[BlackElo "2213"]
[TimeControl "180+2"]
[EndTime "11:18:58 PDT"]
[Termination "josiwales won by resignation"]

1. e4 {[%clk 0:03:01.9]} 1... c5 {[%clk 0:03:00.5]} 2. Nc3 {[%clk 0:03:01.9]}
2... e6 {[%clk 0:02:57.8]} 3. f4 {[%clk 0:03:02.9]} 3... a6 {[%clk 0:02:57.9]}
4. a4 {[%clk 0:03:01.9]} 4... Nc6 {[%clk 0:02:56.4]} 5. Nf3 {[%clk 0:03:02.9]}
5... d5 {[%clk 0:02:56.2]} 6. d3 {[%clk 0:03:00.8]} 6... Nf6 {[%clk 0:02:56.9]}
7. Qe2 {[%clk 0:03:00.6]} 7... Be7 {[%clk 0:02:56.2]} 8. g3 {[%clk 0:03:00.1]}
8... O-O {[%clk 0:02:56.3]} 9. Bg2 {[%clk 0:03:01.4]} 9... b6 {[%clk 0:02:50.5]}
10. e5 {[%clk 0:03:01.5]} 10... Nd7 {[%clk 0:02:49.5]} 11. O-O {[%clk 0:03:03]}
11... Bb7 {[%clk 0:02:50.6]} 12. Bd2 {[%clk 0:03:03.5]} 12... Qc8 {[%clk
0:02:46.3]} 13. Rae1 {[%clk 0:03:04.3]} 13... Nd4 {[%clk 0:02:40]} 14. Qd1
{[%clk 0:03:00.5]} 14... Qc6 {[%clk 0:02:35.2]} 15. Kh1 {[%clk 0:02:59.8]} 15...
b5 {[%clk 0:02:35.6]} 16. axb5 {[%clk 0:02:59.8]} 16... axb5 {[%clk 0:02:36.7]}
17. Nxd4 {[%clk 0:02:58.4]} 17... cxd4 {[%clk 0:02:38.6]} 18. Ne2 {[%clk
0:02:59.1]} 18... Bc5 {[%clk 0:02:39.6]} 19. c3 {[%clk 0:02:57.7]} 19... Qb6
{[%clk 0:02:39.7]} 20. cxd4 {[%clk 0:02:52.8]} 20... Bxd4 {[%clk 0:02:41.6]} 21.
Nxd4 {[%clk 0:02:53.3]} 21... Qxd4 {[%clk 0:02:43.5]} 22. Bc3 {[%clk 0:02:54.4]}
22... Qc5 {[%clk 0:02:41.7]} 23. d4 {[%clk 0:02:55.6]} 23... Qc4 {[%clk
0:02:40.9]} 24. f5 {[%clk 0:02:51.8]} 24... b4 {[%clk 0:02:37.9]} 25. f6 {[%clk
0:02:37.4]} 25... bxc3 {[%clk 0:02:33.3]} 26. Qg4 {[%clk 0:02:37.1]} 26... g6
{[%clk 0:02:34.6]} 27. Qg5 {[%clk 0:02:37.5]} 27... Kh8 {[%clk 0:02:24.3]} 28.
Qh6 {[%clk 0:02:39.4]} 28... Rg8 {[%clk 0:02:25.6]} 29. Rf4 {[%clk 0:02:37.7]}
29... g5 {[%clk 0:02:23.4]} 30. Bf1 {[%clk 0:01:38.5]} 30... Qb4 {[%clk
0:02:13.2]} 31. Bd3 {[%clk 0:01:34.9]} 31... Nf8 {[%clk 0:01:59.6]} 32. Rg4
{[%clk 0:01:17.8]} 32... cxb2 {[%clk 0:01:49.5]} 33. Rxg5 {[%clk 0:01:17.9]}
33... Qxe1+ {[%clk 0:01:48.1]} 34. Kg2 {[%clk 0:01:16.8]} 34... Rxg5 {[%clk
0:01:49.2]} 35. Qxg5 {[%clk 0:01:15.7]} 35... Ng6 {[%clk 0:01:47.5]} 36. Bxg6
{[%clk 0:01:11.1]} 36... Qe2+ {[%clk 0:01:48]} 37. Kh3 {[%clk 0:01:10.5]} 37...
fxg6 {[%clk 0:01:47.8]} 38. f7 {[%clk 0:01:04.5]} 38... Qh5+ {[%clk 0:01:48.7]}
39. Qxh5 {[%clk 0:01:04.5]} 39... gxh5 {[%clk 0:01:50.6]} 0-1

[Event "*** Titled Tuesday 3|2 Blitz"]
[Site "Chess.com"]
[Date "2016.10.04"]
[Round "2"]
[White "Lupul_Cenusiu"]
[Black "ka1ser64"]
[Result "1-0"]
[WhiteElo "2366"]
[BlackElo "2360"]
[TimeControl "180+2"]
[EndTime "11:19:02 PDT"]
[Termination "Lupul_Cenusiu won by resignation"]

1. d4 {[%clk 0:03:02]} 1... d5 {[%clk 0:03:00.6]} 2. c4 {[%clk 0:03:02.8]} 2...
dxc4 {[%clk 0:03:02.5]} 3. Nc3 {[%clk 0:03:03.4]} 3... Nf6 {[%clk 0:03:03.4]} 4.
e4 {[%clk 0:03:02.3]} 4... e5 {[%clk 0:03:04.2]} 5. Nf3 {[%clk 0:02:58]} 5...
exd4 {[%clk 0:03:02.5]} 6. Qxd4 {[%clk 0:02:49.5]} 6... Qxd4 {[%clk 0:03:00]} 7.
Nxd4 {[%clk 0:02:50.4]} 7... Bb4 {[%clk 0:03:00.7]} 8. Nb5 {[%clk 0:02:33.4]}
8... Nxe4 {[%clk 0:02:51]} 9. Nxc7+ {[%clk 0:02:33.3]} 9... Kd8 {[%clk 0:02:52]}
10. Nd5 {[%clk 0:02:26.2]} 10... Nxc3 {[%clk 0:02:25.2]} 11. bxc3 {[%clk
0:02:26.4]} 11... Re8+ {[%clk 0:02:23.7]} 12. Be3 {[%clk 0:02:25.6]} 12... Bc5
{[%clk 0:02:23.1]} 13. Bxc4 {[%clk 0:02:19.7]} 13... Be6 {[%clk 0:02:22.1]} 14.
O-O-O {[%clk 0:02:18.5]} 14... Bxe3+ {[%clk 0:02:20]} 15. Nxe3+ {[%clk
0:02:19.1]} 15... Kc7 {[%clk 0:02:21.2]} 16. Nd5+ {[%clk 0:02:12.3]} 16... Kc6
{[%clk 0:01:54.3]} 17. Rhe1 {[%clk 0:02:08.3]} 17... Nd7 {[%clk 0:01:30.1]} 18.
a4 {[%clk 0:01:44.6]} 18... a6 {[%clk 0:01:30.2]} 19. a5 {[%clk 0:01:43.3]}
19... Kc5 {[%clk 0:00:50.3]} 20. Ba2 {[%clk 0:01:43.2]} 20... Rac8 {[%clk
0:00:46.6]} 21. Kb2 {[%clk 0:01:41.1]} 21... b5 {[%clk 0:00:45.1]} 22. f4 {[%clk
0:01:27.8]} 22... g6 {[%clk 0:00:40]} 23. Nb4 {[%clk 0:01:21.8]} 23... Nb8
{[%clk 0:00:35.9]} 24. Re5+ {[%clk 0:01:16]} 1-0

[Event "*** Titled Tuesday 3|2 Blitz"]
[Site "Chess.com"]
[Date "2016.10.04"]
[Round "2"]
[White "Kawhi_Leonard2"]
[Black "FLchessplayer"]
[Result "1-0"]
[WhiteElo "1976"]
[BlackElo "2017"]
[TimeControl "180+2"]
[EndTime "11:19:14 PDT"]
[Termination "Kawhi_Leonard2 won by resignation"]

1. e4 {[%clk 0:03:01.9]} 1... c5 {[%clk 0:02:59.8]} 2. Nf3 {[%clk 0:03:02.3]}
2... d6 {[%clk 0:03:00.9]} 3. d4 {[%clk 0:03:03.8]} 3... cxd4 {[%clk 0:03:01.3]}
4. Nxd4 {[%clk 0:03:05.4]} 4... Nf6 {[%clk 0:03:02.6]} 5. Nc3 {[%clk 0:03:06.9]}
5... g6 {[%clk 0:03:03.4]} 6. Be3 {[%clk 0:03:06.9]} 6... Bg7 {[%clk 0:03:04.3]}
7. f3 {[%clk 0:03:08.5]} 7... O-O {[%clk 0:03:05.3]} 8. Qd2 {[%clk 0:03:10]}
8... Nc6 {[%clk 0:03:06.4]} 9. O-O-O {[%clk 0:03:10.6]} 9... d5 {[%clk
0:03:07.6]} 10. Qe1 {[%clk 0:03:11.7]} 10... e6 {[%clk 0:03:07.8]} 11. h4 {[%clk
0:03:02.8]} 11... h5 {[%clk 0:03:07.5]} 12. exd5 {[%clk 0:02:56.2]} 12... exd5
{[%clk 0:03:06.6]} 13. Qd2 {[%clk 0:02:35.1]} 13... Kh7 {[%clk 0:03:06]} 14. Be2
{[%clk 0:02:34.9]} 14... Re8 {[%clk 0:03:06.5]} 15. Bg5 {[%clk 0:02:27.4]} 15...
Nxd4 {[%clk 0:03:03.7]} 16. Qxd4 {[%clk 0:02:27.9]} 16... Be6 {[%clk 0:03:04.6]}
17. g4 {[%clk 0:02:26.2]} 17... Nxg4 {[%clk 0:02:59.4]} 18. Bxd8 {[%clk
0:02:20.6]} 18... Bxd4 {[%clk 0:02:58.8]} 19. Rxd4 {[%clk 0:02:18.8]} 19...
Raxd8 {[%clk 0:02:43.3]} 20. fxg4 {[%clk 0:02:19.1]} 20... hxg4 {[%clk
0:02:44.5]} 21. Bxg4 {[%clk 0:02:16.9]} 21... a6 {[%clk 0:02:39.3]} 22. h5
{[%clk 0:02:17.1]} 22... g5 {[%clk 0:02:39.7]} 23. Rf1 {[%clk 0:02:07.6]} 23...
Kg7 {[%clk 0:02:30.3]} 24. Bf3 {[%clk 0:01:49.7]} 24... g4 {[%clk 0:02:20.1]}
25. Bxg4 {[%clk 0:01:47.6]} 25... Bxg4 {[%clk 0:02:18.6]} 26. Rxg4+ {[%clk
0:01:46.8]} 26... Kh6 {[%clk 0:02:19.7]} 27. Rxf7 {[%clk 0:01:39.6]} 27... Re1+
{[%clk 0:02:14.7]} 28. Kd2 {[%clk 0:01:39.1]} 28... Rh1 {[%clk 0:02:15.4]} 29.
Rxb7 {[%clk 0:01:28.1]} 29... d4 {[%clk 0:02:12.5]} 30. Ne4 {[%clk 0:01:26.3]}
30... Rh2+ {[%clk 0:02:12.2]} 31. Kd3 {[%clk 0:01:25.6]} 31... Rc8 {[%clk
0:02:10.7]} 32. Rg6+ {[%clk 0:01:19.4]} 32... Kxh5 {[%clk 0:02:08]} 33. Rh7+
{[%clk 0:01:17.5]} 33... Kxg6 {[%clk 0:02:08.3]} 34. Rxh2 {[%clk 0:01:19]} 34...
Rb8 {[%clk 0:02:07.5]} 35. b3 {[%clk 0:01:19]} 35... Rb5 {[%clk 0:02:07.8]} 36.
Kxd4 {[%clk 0:01:17.8]} 36... Ra5 {[%clk 0:02:08.6]} 37. a4 {[%clk 0:01:17.7]}
37... Rf5 {[%clk 0:02:08.2]} 38. Rg2+ {[%clk 0:01:15.9]} 38... Kh7 {[%clk
0:02:02.7]} 39. Rg5 {[%clk 0:01:15.1]} 39... Rf7 {[%clk 0:01:59]} 40. c4 {[%clk
0:01:13.8]} 40... Rd7+ {[%clk 0:01:58.8]} 41. Kc3 {[%clk 0:01:14.5]} 41... Rb7
{[%clk 0:01:58]} 42. Nc5 {[%clk 0:01:14.6]} 42... Rb6 {[%clk 0:01:58.8]} 43. a5
{[%clk 0:01:13.9]} 43... Rc6 {[%clk 0:01:59.3]} 44. b4 {[%clk 0:01:13.6]} 44...
Rd6 {[%clk 0:01:59.1]} 45. Re5 {[%clk 0:01:13.7]} 45... Kg6 {[%clk 0:01:59.2]}
46. Re6+ {[%clk 0:01:14.8]} 1-0

[Event "*** Titled Tuesday 3|2 Blitz"]
[Site "Chess.com"]
[Date "2016.10.04"]
[Round "2"]
[White "ZEN-22"]
[Black "Gordima"]
[Result "0-1"]
[WhiteElo "2255"]
[BlackElo "2552"]
[TimeControl "180+2"]
[EndTime "11:19:19 PDT"]
[Termination "Gordima won by checkmate"]

1. e3 {[%clk 0:03:01.1]} 1... Nf6 {[%clk 0:03:00.4]} 2. Ne2 {[%clk 0:03:00.1]}
2... g6 {[%clk 0:03:01.7]} 3. h4 {[%clk 0:03:00.7]} 3... c5 {[%clk 0:02:57.7]}
4. h5 {[%clk 0:03:01.1]} 4... Nxh5 {[%clk 0:02:58.8]} 5. Rxh5 {[%clk 0:03:01.3]}
5... gxh5 {[%clk 0:02:59.3]} 6. Nf4 {[%clk 0:03:03.2]} 6... e6 {[%clk
0:02:53.3]} 7. Nxh5 {[%clk 0:02:57.4]} 7... Nc6 {[%clk 0:02:52]} 8. c4 {[%clk
0:02:56.9]} 8... Qg5 {[%clk 0:02:39.6]} 9. f4 {[%clk 0:02:55.6]} 9... Qg6 {[%clk
0:02:38.8]} 10. Kf2 {[%clk 0:02:55]} 10... d6 {[%clk 0:02:37.6]} 11. Nc3 {[%clk
0:02:52.4]} 11... Bd7 {[%clk 0:02:36.2]} 12. d4 {[%clk 0:02:53.2]} 12... O-O-O
{[%clk 0:02:02.7]} 13. Bd3 {[%clk 0:02:53.4]} 13... f5 {[%clk 0:02:00.5]} 14. d5
{[%clk 0:02:49.9]} 14... Nb4 {[%clk 0:01:57.1]} 15. Be2 {[%clk 0:02:49.6]} 15...
Rg8 {[%clk 0:01:48.6]} 16. g3 {[%clk 0:02:42.1]} 16... e5 {[%clk 0:01:42.5]} 17.
a3 {[%clk 0:02:42.6]} 17... Na6 {[%clk 0:01:43.4]} 18. b4 {[%clk 0:02:41.7]}
18... exf4 {[%clk 0:01:40.2]} 19. exf4 {[%clk 0:02:38.6]} 19... Bg7 {[%clk
0:01:37.5]} 20. Qb3 {[%clk 0:02:32.8]} 20... Bd4+ {[%clk 0:01:30.7]} 21. Kf1
{[%clk 0:02:33.5]} 21... Rde8 {[%clk 0:01:30.1]} 22. Bf3 {[%clk 0:02:32.9]}
22... Qh6 {[%clk 0:01:13.6]} 23. Ra2 {[%clk 0:02:26.6]} 23... Rg4 {[%clk
0:01:02]} 24. Rh2 {[%clk 0:02:23.3]} 24... Rxg3 {[%clk 0:01:00]} 25. Ne2 {[%clk
0:02:03.4]} 25... Ba4 {[%clk 0:00:33.8]} 26. Qd3 {[%clk 0:02:03.5]} 26... Bc2
{[%clk 0:00:34.4]} 27. Qxc2 {[%clk 0:01:51.6]} 27... Rxf3+ {[%clk 0:00:35.5]}
28. Ke1 {[%clk 0:01:50.8]} 28... Qg6 {[%clk 0:00:35.6]} 29. Bb2 {[%clk
0:01:35.6]} 29... Qg1+ {[%clk 0:00:33]} 30. Kd2 {[%clk 0:01:35.8]} 30... Be3+
{[%clk 0:00:33.8]} 31. Kd3 {[%clk 0:01:35.8]} 31... Bc1# {[%clk 0:00:33.3]} 0-1

[Event "*** Titled Tuesday 3|2 Blitz"]
[Site "Chess.com"]
[Date "2016.10.04"]
[Round "2"]
[White "AdrianaNikolova"]
[Black "Carolina-moon"]
[Result "0-1"]
[WhiteElo "2242"]
[BlackElo "2171"]
[TimeControl "180+2"]
[EndTime "11:20:02 PDT"]
[Termination "Carolina-moon won on time"]

1. e4 {[%clk 0:03:01.8]} 1... c5 {[%clk 0:02:59.8]} 2. Nf3 {[%clk 0:03:02.1]}
2... d6 {[%clk 0:03:01.1]} 3. d4 {[%clk 0:03:03.1]} 3... Nf6 {[%clk 0:03:02.5]}
4. Nc3 {[%clk 0:03:03]} 4... cxd4 {[%clk 0:03:03.6]} 5. Nxd4 {[%clk 0:03:04.9]}
5... a6 {[%clk 0:03:05.2]} 6. Bg5 {[%clk 0:03:05.8]} 6... e6 {[%clk 0:03:06.7]}
7. f4 {[%clk 0:03:06.5]} 7... Be7 {[%clk 0:03:08]} 8. Qf3 {[%clk 0:03:07.4]}
8... Qc7 {[%clk 0:03:09.5]} 9. O-O-O {[%clk 0:03:08.1]} 9... Nbd7 {[%clk
0:03:10.9]} 10. g4 {[%clk 0:03:07.9]} 10... b5 {[%clk 0:03:11.9]} 11. Bxf6
{[%clk 0:03:08.6]} 11... Bxf6 {[%clk 0:03:13.4]} 12. Bxb5 {[%clk 0:03:04.3]}
12... Rb8 {[%clk 0:03:13.4]} 13. Ba4 {[%clk 0:02:14.2]} 13... O-O {[%clk
0:03:13]} 14. Bb3 {[%clk 0:02:10.3]} 14... Qb6 {[%clk 0:02:38.7]} 15. Nde2
{[%clk 0:01:58.4]} 15... Nc5 {[%clk 0:02:19.8]} 16. f5 {[%clk 0:01:56]} 16... a5
{[%clk 0:02:11.6]} 17. a4 {[%clk 0:01:08.7]} 17... Nxb3+ {[%clk 0:02:08.1]} 18.
cxb3 {[%clk 0:01:10.6]} 18... Qxb3 {[%clk 0:02:07.9]} 19. Rd2 {[%clk 0:01:12.1]}
19... Bg5 {[%clk 0:02:06.8]} 20. Nf4 {[%clk 0:00:40.4]} 20... e5 {[%clk
0:02:04.5]} 21. Kb1 {[%clk 0:00:38.3]} 21... Bxf4 {[%clk 0:02:03.2]} 22. Rf2
{[%clk 0:00:30.4]} 22... Bb7 {[%clk 0:01:52.1]} 23. Re1 {[%clk 0:00:24.3]} 23...
Rfc8 {[%clk 0:01:50.7]} 24. Rc2 {[%clk 0:00:24.3]} 24... Ba6 {[%clk 0:01:33.7]}
25. h4 {[%clk 0:00:19.7]} 25... Rc4 {[%clk 0:01:22.1]} 26. g5 {[%clk 0:00:15.2]}
26... Rd4 {[%clk 0:01:18.3]} 27. Rg2 {[%clk 0:00:07.9]} 27... Rd3 {[%clk
0:01:15.5]} 28. Qf2 {[%clk 0:00:03.3]} 28... Rxc3 {[%clk 0:01:14.3]} 29. g6
{[%clk 0:00:04.1]} 29... Rc2 {[%clk 0:01:10.2]} 0-1

[Event "*** Titled Tuesday 3|2 Blitz"]
[Site "Chess.com"]
[Date "2016.10.04"]
[Round "2"]
[White "jcibarra"]
[Black "Spas_Kozhuharov"]
[Result "1-0"]
[WhiteElo "2702"]
[BlackElo "2469"]
[TimeControl "180+2"]
[EndTime "11:20:40 PDT"]
[Termination "jcibarra won by resignation"]

1. e4 {[%clk 0:03:01.9]} 1... c6 {[%clk 0:03:00.5]} 2. d4 {[%clk 0:03:02]} 2...
d5 {[%clk 0:03:01.8]} 3. e5 {[%clk 0:03:03.6]} 3... c5 {[%clk 0:03:02.8]} 4.
dxc5 {[%clk 0:03:03.9]} 4... e6 {[%clk 0:03:04.1]} 5. a3 {[%clk 0:03:05.1]} 5...
Nc6 {[%clk 0:03:03.7]} 6. Nf3 {[%clk 0:03:04.3]} 6... Bxc5 {[%clk 0:03:03.6]} 7.
b4 {[%clk 0:03:05.2]} 7... Bb6 {[%clk 0:03:05]} 8. Bb2 {[%clk 0:03:06.2]} 8...
f6 {[%clk 0:03:06.2]} 9. b5 {[%clk 0:02:58.3]} 9... Nxe5 {[%clk 0:03:00.5]} 10.
Nxe5 {[%clk 0:02:59.3]} 10... fxe5 {[%clk 0:03:01.5]} 11. Qh5+ {[%clk
0:03:00.9]} 11... Kf8 {[%clk 0:02:57.4]} 12. Qxe5 {[%clk 0:02:59.3]} 12... Nf6
{[%clk 0:02:57.6]} 13. Be2 {[%clk 0:02:54.5]} 13... Bd7 {[%clk 0:02:46.9]} 14.
O-O {[%clk 0:02:53.4]} 14... Rc8 {[%clk 0:02:45.1]} 15. Bd3 {[%clk 0:02:53.1]}
15... Qc7 {[%clk 0:02:35]} 16. Qg5 {[%clk 0:02:50.2]} 16... h6 {[%clk
0:02:34.2]} 17. Qh4 {[%clk 0:02:49.9]} 17... g5 {[%clk 0:02:27.2]} 18. Qg3
{[%clk 0:02:41.3]} 18... Qxg3 {[%clk 0:02:26.9]} 19. hxg3 {[%clk 0:02:43.2]}
19... Ke7 {[%clk 0:02:26.9]} 20. Nd2 {[%clk 0:02:43.7]} 20... h5 {[%clk
0:02:20.2]} 21. Nf3 {[%clk 0:02:44.1]} 21... Rcg8 {[%clk 0:02:10.1]} 22. Ne5
{[%clk 0:02:42.6]} 22... h4 {[%clk 0:02:05.7]} 23. Nxd7 {[%clk 0:02:23.3]} 23...
Kxd7 {[%clk 0:01:54.8]} 24. Bxf6 {[%clk 0:02:22.6]} 24... Rh6 {[%clk 0:01:55.9]}
25. Be5 {[%clk 0:01:33.6]} 25... hxg3 {[%clk 0:01:54.6]} 26. c3 {[%clk 0:01:23]}
26... gxf2+ {[%clk 0:01:45.3]} 27. Rxf2 {[%clk 0:01:23.3]} 27... Bxf2+ {[%clk
0:01:25.3]} 28. Kxf2 {[%clk 0:01:25.2]} 28... Rf8+ {[%clk 0:01:21.4]} 29. Ke3
{[%clk 0:01:24.8]} 29... Rh4 {[%clk 0:01:14]} 30. a4 {[%clk 0:01:21.5]} 30... g4
{[%clk 0:00:41.6]} 31. a5 {[%clk 0:01:17.6]} 31... Rh5 {[%clk 0:00:41.9]} 32.
Bd4 {[%clk 0:01:11.9]} 32... Ra8 {[%clk 0:00:42.8]} 33. Rf1 {[%clk 0:01:00.7]}
33... e5 {[%clk 0:00:43.6]} 34. Bc5 {[%clk 0:00:58.7]} 34... e4 {[%clk
0:00:35.7]} 35. Be2 {[%clk 0:00:56.8]} 35... Rg5 {[%clk 0:00:36.2]} 36. Rf7+
{[%clk 0:00:55]} 36... Ke6 {[%clk 0:00:37.5]} 37. Rxb7 {[%clk 0:00:54.6]} 1-0